[Event "95th Caplin Hastings Congress"]
[Site "Hastings"]
[Date "2019.12.31"]
[Round "4.56"]
[White "Damodaran, Patrick"]
[Black "Zheng, Harry Z"]
[Result "1-0"]
[ECO "C36"]
[WhiteElo "1388"]
[BlackElo "1705"]
[Annotator "NA"]
[PlyCount "97"]
[EventDate "2019.12.28"]
[EventType "swiss"]
[EventCountry "ENG"]
[SourceTitle "playchess.com"]
[Source "ChessBase"]
[SourceQuality "1"]
[TimeControl "40/6600+30:3000+30"]

1. e4 {[%emt 1:22:08]} e5 {[%emt 0:00:10]} 2. f4 {[%emt 0:02:40]} d5 {[%emt 0:00:12]} 3. exd5 {[%emt 0:01:36]} exf4 {[%emt 0:00:15]} 4. Nf3 {[%emt 0:03:30]} Nf6 {[%emt 0:00:21]} 5. c4 {[%emt 0:02:20]} c6 {[%emt 0:00:15]} 6. d4 {[%emt 0:02:47]} Bb4+ {[%emt 0:00:08]} 7. Bd2 {[%emt 0:01:52]} Qe7+ {[%emt 0:13:46]} 8. Be2 {[%emt 0:06:05]} cxd5 {[%emt 0:03:18]} 9. Qa4+ {[%emt 0:28:15]} Nc6 {[%emt 0:00:26]} 10. O-O {[%emt 0:17:32]} Bxd2 {[%emt 0:00:49]} 11. Nbxd2 {[%emt 0:02:41]} O-O {[%emt 0:00:42]} 12. Rfe1 {[%emt 0:00:00]} Nxd4 {[%emt 0:07:06]} 13. Bd1 {[%emt 0:12:23]} Nxf3+ {[%emt 0:01:09]} 14. Bxf3 {[%emt 0:02:31]} Qc5+ {[%emt 0:02:38]} 15. Kh1 {[%emt 0:00:57]} Be6 {[%emt 0:19:41]} 16. cxd5 {[%emt 0:00:30]} Nxd5 {[%emt 0:06:20]} 17. Bxd5 {[%emt 0:00:20]} Qxd5 {[%emt 0:01:14]} 18. Qxf4 {[%emt 0:00:16]} Rac8 {[%emt 0:00:31]} 19. Ne4 {[%emt 0:00:30]} Rc2 {[%emt 0:09:24]} 20. Qg3 {[%emt 0:00:29]} Kh8 {[%emt 0:04:48]} 21. Qa3 {[%emt 0:01:03]} Rd8 {[%emt 0:03:47]} 22. Qf3 {[%emt 0:01:07]} Rxb2 {[%emt 0:03:41]} 23. Rad1 {[%emt 0:00:17]} Qa5 {[%emt 0:00:40]} 24. Qc3 {[%emt 0:00:31]} Rxd1 {[%emt 0:04:35]} 25. Rxd1 {[%emt 0:00:22]} Rb1 {[%emt 0:00:12]} 26. Rxb1 {[%emt 0:00:15]} Qd5 {[%emt 0:01:15]} 27. Qd2 {[%emt 0:00:51]} Qxd2 {[%emt 0:02:11]} 28. Nxd2 {[%emt 0:00:11]} b6 {[%emt 0:00:06]} 29. Rc1 {[%emt 0:00:20]} g6 {[%emt 0:00:06]} 30. Nb3 {[%emt 0:00:07]} Bd5 {[%emt 0:01:20]} 31. Rd1 {[%emt 0:00:15]} Be6 {[%emt 0:00:10]} 32. Rd8+ {[%emt 0:00:13]} Kg7 {[%emt 0:00:11]} 33. Ra8 {[%emt 0:00:12]} Kf6 {[%emt 0:00:35]} 34. Rxa7 {[%emt 0:00:19]} Ke5 {[%emt 0:00:05]} 35. Rb7 {[%emt 0:00:12]} Ke4 {[%emt 0:00:16]} 36. Rxb6 {[%emt 0:00:10]} Bd5 {[%emt 0:00:13]} 37. a4 {[%emt 0:00:20]} Ke3 {[%emt 0:00:07]} 38. a5 {[%emt 0:00:14]} Kf2 {[%emt 0:00:07]} 39. Rf6+ {[%emt 0:00:15]} Ke1 {[%emt 0:00:11]} 40. Nc5 {[%emt 0:00:17]} h5 {[%emt 0:00:25]} 41. a6 {[%emt 0:01:22]} h4 {[%emt 0:00:07]} 42. h3 {[%emt 0:00:08]} g5 {[%emt 0:00:07]} 43. a7 {[%emt 0:00:33]} g4 {[%emt 0:00:06]} 44. Kh2 {[%emt 0:00:12]} g3+ {[%emt 0:01:05]} 45. Kg1 {[%emt 0:00:15]} Kd2 {[%emt 0:00:10]} 46. Rd6 {[%emt 0:00:10]} Ke3 {[%emt 0:00:32]} 47. Rxd5 {[%emt 0:00:12]} f5 {[%emt 0:00:14]} 48. a8=Q {[%emt 0:00:16]} f4 {[%emt 0:00:10]} 49. Qe8# {[%emt 0:00:21] Kd3} 1-0

[Event "95th Caplin Hastings Congress"]
[Site "Hastings"]
[Date "2019.12.31"]
[Round "4.57"]
[White "Stoyanov, Boris"]
[Black "Dewangan, Aayush"]
[Result "0-1"]
[ECO "B52"]
[WhiteElo "1504"]
[BlackElo "1548"]
[Annotator "NA"]
[PlyCount "102"]
[EventDate "2019.12.28"]
[EventType "swiss"]
[EventCountry "ENG"]
[SourceTitle "playchess.com"]
[Source "ChessBase"]
[SourceQuality "1"]
[TimeControl "40/6600+30:3000+30"]

1. e4 {[%emt 0:09:31]} c5 {[%emt 0:09:39]} 2. Nf3 {[%emt 0:00:06]} d6 {[%emt 0:00:08]} 3. Bb5+ {[%emt 0:00:04]} Bd7 {[%emt 0:00:13]} 4. Bxd7+ {[%emt 0:00:06]} Nxd7 {[%emt 0:00:13]} 5. c3 {[%emt 0:00:46]} Ngf6 {[%emt 0:00:22]} 6. Qe2 {[%emt 0:01:02]} g6 {[%emt 0:01:45]} 7. O-O {[%emt 0:00:31]} Bg7 {[%emt 0:00:23]} 8. d4 {[%emt 0:03:43]} O-O {[%emt 0:03:27]} 9. Bd2 {[%emt 0:07:03]} Qb6 {[%emt 0:01:01]} 10. Bg5 {[%emt 0:05:23]} h6 {[%emt 0:04:33]} 11. Bxf6 {[%emt 0:01:33]} Bxf6 {[%emt 0:00:46]} 12. Rd1 {[%emt 0:03:07]} Rac8 {[%emt 0:06:00]} 13. e5 {[%emt 0:04:32]} Bg7 {[%emt 0:01:20]} 14. Na3 {[%emt 0:02:46]} cxd4 {[%emt 0:09:00]} 15. cxd4 {[%emt 0:04:13]} dxe5 {[%emt 0:02:15]} 16. Nc4 {[%emt 0:02:15]} Qa6 {[%emt 0:04:27]} 17. dxe5 {[%emt 0:06:12]} Rxc4 {[%emt 0:00:57]} 18. e6 {[%emt 0:09:10]} fxe6 {[%emt 0:02:25]} 19. Qd3 {[%emt 0:05:03]} Nf6 {[%emt 0:04:39]} 20. Ne5 {[%emt 0:02:31]} Re4 {[%emt 0:03:56]} 21. Nxg6 {[%emt 0:00:58]} Re1+ {[%emt 0:00:34]} 22. Rxe1 {[%emt 0:01:11]} Qxd3 {[%emt 0:00:10]} 23. Nxf8 {[%emt 0:00:16]} Kxf8 {[%emt 0:00:22]} 24. Rxe6 {[%emt 0:00:23]} Qc2 {[%emt 0:00:40]} 25. Rae1 {[%emt 0:01:04]} Nd5 {[%emt 0:01:12]} 26. R6e2 {[%emt 0:00:21]} Qa4 {[%emt 0:00:39]} 27. b3 {[%emt 0:00:31]} Qg4 {[%emt 0:00:14]} 28. Re4 {[%emt 0:01:20]} Nf4 {[%emt 0:01:09]} 29. g3 {[%emt 0:00:47]} Nh3+ {[%emt 0:00:08]} 30. Kg2 {[%emt 0:00:20]} Qd7 {[%emt 0:02:07]} 31. Rxe7 {[%emt 0:00:58]} Nf4+ {[%emt 0:00:28]} 32. Kg1 {[%emt 0:02:27]} Qxe7 {[%emt 0:00:16]} 33. Rxe7 {[%emt 0:00:05]} Kxe7 {[%emt 0:00:06]} 34. gxf4 {[%emt 0:00:06]} Kf6 {[%emt 0:00:06]} 35. Kg2 {[%emt 0:00:05]} Kf5 {[%emt 0:00:09]} 36. Kf3 {[%emt 0:00:23]} Bf8 {[%emt 0:00:05]} 37. h3 {[%emt 0:02:24]} Bd6 {[%emt 0:00:05]} 38. Ke3 {[%emt 0:00:41]} Bxf4+ {[%emt 0:00:07]} 39. Kf3 {[%emt 0:00:15]} Bg5 {[%emt 0:00:10]} 40. b4 {[%emt 0:00:31]} b5 {[%emt 0:00:09]} 41. a3 {[%emt 0:50:22]} Bc1 {[%emt 0:50:06]} 42. h4 {[%emt 0:00:45]} Bxa3 {[%emt 0:00:06]} 43. h5 {[%emt 0:00:22]} Bxb4 {[%emt 0:00:09]} 44. Kg3 {[%emt 0:00:43]} Be1 {[%emt 0:00:08]} 45. Kf3 {[%emt 0:00:17]} a5 {[%emt 0:00:08]} 46. Kg2 {[%emt 0:01:33]} a4 {[%emt 0:00:35]} 47. Kf1 {[%emt 0:00:28]} Bxf2 {[%emt 0:00:07]} 48. Kxf2 {[%emt 0:00:06]} a3 {[%emt 0:00:07]} 49. Kg3 {[%emt 0:00:10]} a2 {[%emt 0:00:07]} 50. Kh4 {[%emt 0:00:10]} a1=Q {[%emt 0:00:19]} 51. Kh3 {[%emt 0:00:10]} Qg1 {[%emt 0:00:14]} 0-1

[Event "95th Caplin Hastings Congress"]
[Site "Hastings"]
[Date "2019.12.31"]
[Round "4.58"]
[White "Varney, Zoe"]
[Black "Liu, Tianyi"]
[Result "1/2-1/2"]
[ECO "B22"]
[WhiteElo "2004"]
[BlackElo "1307"]
[Annotator "NA RC"]
[PlyCount "115"]
[EventDate "2019.12.28"]
[EventType "swiss"]
[EventCountry "ENG"]
[SourceTitle "playchess.com"]
[Source "ChessBase"]
[SourceQuality "1"]
[TimeControl "40/6600+30:3000+30"]

1. e4 {[%emt 0:09:33]} c5 {[%emt 0:10:10]} 2. c3 {[%emt 0:00:04]} d5 {[%emt 0:00:13]} 3. exd5 {[%emt 0:00:04]} Qxd5 {[%emt 0:00:06]} 4. d4 {[%emt 0:00:03]} Nf6 {[%emt 0:00:09]} 5. Nf3 {[%emt 0:00:04]} Nc6 {[%emt 0:00:07]} 6. Be2 {[%emt 0:00:07]} e6 {[%emt 0:00:06]} 7. Be3 {[%emt 0:00:31]} cxd4 {[%emt 0:09:04]} 8. cxd4 {[%emt 0:00:09]} Be7 {[%emt 0:02:05]} 9. Nc3 {[%emt 0:02:20]} Qa5 {[%emt 0:06:54]} 10. O-O {[%emt 0:03:35]} O-O {[%emt 0:01:27]} 11. a3 {[%emt 0:06:22]} Nd5 {[%emt 0:08:15]} 12. Nxd5 {[%emt 0:07:40]} Qxd5 {[%emt 0:00:24]} 13. Rc1 {[%emt 0:08:58] B22: Sicilian: 2 c3} Rd8 {[%emt 0:05:46]} 14. Bc4 {[%emt 0:03:37]} Qd6 {[%emt 0:01:51]} (14... Qa5 15. Qb3 Qh5 16. Rfd1 Bd7 17. Qxb7 Na5 18. Qe4 Ba4 19. Re1 Nxc4 20. Rxc4 Bb3 {½-½ (101) Heberla,B (2557)-Markowski,T (2553) Opole 2007}) 15. Qd2 {[%emt 0:15:20]} Bf6 {[%emt 0:08:37]} 16. Rfd1 {[%emt 0:01:30]} Ne7 {[%emt 0:06:59]} 17. Ng5 {[%emt 0:15:35]} Nf5 $146 {[%emt 0:11:17]} ({Predecessor:} 17... Nd5 18. Ne4 Qe7 19. Nxf6+ Nxf6 20. Bg5 Bd7 {0-1 (51) Martin Ojeda,J (2220)-Camacho Calle,P (2250) Murcia 1997}) 18. Ne4 {[%emt 0:02:43]} Qe7 {[%emt 0:01:01]} 19. Nxf6+ {[%emt 0:02:22]} gxf6 {[%emt 0:02:06]} 20. d5 {[%emt 0:02:40]} b6 {[%emt 0:03:54]} 21. Bh6 {[%emt 0:11:43]} Bb7 {[%emt 0:02:33]} 22. Qf4 {[%emt 0:05:57]} Nxh6 {[%emt 0:06:15]} 23. Qxh6 {[%emt 0:00:28]} Bxd5 {[%emt 0:06:21]} 24. Rd4 {[%emt 0:02:43]} f5 {[%emt 0:01:27]} 25. Rd3 {[%emt 0:00:50]} Kh8 {[%emt 0:01:11]} 26. Bxd5 {[%emt 0:07:45]} Rxd5 {[%emt 0:01:17]} 27. Rxd5 {[%emt 0:00:46]} exd5 {[%emt 0:00:09]} 28. h3 {[%emt 0:00:54]} Rd8 {[%emt 0:02:45]} 29. Qf4 {[%emt 0:01:50]} Qe6 {[%emt 0:03:21]} 30. Rc7 {[%emt 0:01:57]} Ra8 {[%emt 0:04:33]} 31. Qd4+ {[%emt 0:00:42]} Kg8 {[%emt 0:01:30]} 32. Rc3 {[%emt 0:01:09]} f6 {[%emt 0:02:43]} 33. Re3 {[%emt 0:00:43]} Qd6 {[%emt 0:01:05]} 34. Qd3 {[%emt 0:01:22]} f4 {[%emt 0:06:21]} 35. Rf3 {[%emt 0:01:36]} Re8 {[%emt 0:01:12]} 36. Qf5 {[%emt 0:00:42]} Re4 {[%emt 0:01:22]} 37. g3 {[%emt 0:00:46]} Qe5 {[%emt 0:02:34]} 38. Qg4+ {[%emt 0:01:06]} Kf7 {[%emt 0:01:15]} 39. gxf4 {[%emt 0:01:10]} Qe6 {[%emt 0:00:30]} 40. Qh5+ {[%emt 0:00:53]} Kg7 {[%emt 0:00:23]} 41. Rg3+ {[%emt 0:51:07]} Kh8 {[%emt 0:50:12]} 42. Qh6 {[%emt 0:00:00]} Qf7 {[%emt 0:00:00]} 43. Kf1 {[%emt 0:00:00]} Rc4 {[%emt 0:00:00]} 44. f5 {[%emt 0:00:00]} Rc2 {[%emt 0:00:00]} 45. b4 {[%emt 0:00:00]} Rc6 {[%emt 0:00:00]} 46. h4 {[%emt 0:00:00]} d4 $11 {[%emt 0:00:00]} 47. Qf4 {[%emt 0:00:00]} Qd7 {[%emt 0:00:00]} 48. Qg4 {[%emt 0:00:00]} Rc8 {[%emt 0:00:00]} 49. Rd3 {[%emt 0:00:00]} Rd8 {[%emt 0:00:00]} 50. h5 {[%emt 0:00:00]} Qd5 {[%emt 0:00:16]} 51. Qh4 {[%emt 0:00:00]} Qxf5 {[%emt 0:01:28]} 52. Rxd4 {[%emt 0:00:00]} Rxd4 {[%emt 0:00:20]} 53. Qxd4 {[%emt 0:00:00]} Qh3+ {[%emt 0:00:35]} 54. Kg1 {[%emt 0:00:53]} Qxh5 {[%emt 0:00:30]} 55. Qxf6+ {[%emt 0:00:04]} Kg8 {[%emt 0:00:14]} 56. Qd8+ {[%emt 0:00:36]} Kg7 {[%emt 0:00:23]} 57. Qd4+ {[%emt 0:00:36]} Kg8 {[%emt 0:00:17]} 58. Qd8+ {[%emt 0:01:35]} 1/2-1/2

[Event "95th Caplin Hastings Congress"]
[Site "Hastings"]
[Date "2020.01.01"]
[Round "5.3"]
[White "Van den Doel, Erik"]
[Black "Willow, Jonah B"]
[Result "1-0"]
[ECO "C84"]
[WhiteElo "2589"]
[BlackElo "2355"]
[Annotator "RC"]
[PlyCount "99"]
[EventDate "2019.12.28"]
[EventType "swiss"]
[EventCountry "ENG"]
[SourceTitle "playchess.com"]
[Source "ChessBase"]
[SourceQuality "1"]
[TimeControl "40/6600+30:3000+30"]

1. e4 {[%emt 0:09:41]} e5 {[%emt 0:09:49]} 2. Nf3 {[%emt 0:00:23]} Nc6 {[%emt 0:00:05]} 3. Bb5 {[%emt 0:05:26]} a6 {[%emt 0:00:30]} 4. Ba4 {[%emt 0:00:07]} d6 {[%emt 0:00:05]} 5. O-O {[%emt 0:00:27]} Bg4 {[%emt 0:00:45]} 6. c3 {[%emt 0:01:38]} Nf6 {[%emt 0:01:24]} 7. d3 {[%emt 0:07:41]} Be7 {[%emt 0:02:04]} 8. Nbd2 {[%emt 0:02:20]} Nd7 {[%emt 0:00:27]} 9. h3 {[%emt 0:04:03]} Bh5 {[%emt 0:00:30]} 10. b4 {[%emt 0:02:47]} O-O {[%emt 0:10:14]} 11. a3 {[%emt 0:09:46]} Re8 {[%emt 0:06:29]} 12. Re1 {[%emt 0:00:44]} Bg5 {[%emt 0:01:04]} 13. g4 {[%emt 0:04:55]} Bg6 {[%emt 0:00:33]} 14. Nxg5 {[%emt 0:07:25]} Qxg5 {[%emt 0:00:07]} 15. Nf3 {[%emt 0:00:08]} Qe7 {[%emt 0:00:41]} 16. Be3 {[%emt 0:06:23]} Nd8 {[%emt 0:03:08]} 17. h4 {[%emt 0:06:11]} h5 {[%emt 0:05:52]} 18. Ng5 {[%emt 0:01:50]} hxg4 {[%emt 0:01:18]} 19. Qxg4 {[%emt 0:00:05]} Nf6 {[%emt 0:00:31]} 20. Qh3 {[%emt 0:06:22]} c6 {[%emt 0:03:13]} 21. Kh2 {[%emt 0:06:20]} Ne6 {[%emt 0:06:38]} 22. Nxe6 {[%emt 0:02:06]} Qxe6 {[%emt 0:00:06]} 23. Qxe6 {[%emt 0:00:08]} Rxe6 {[%emt 0:00:06]} 24. f3 {[%emt 0:00:48]} d5 {[%emt 0:10:09]} 25. Bb3 {[%emt 0:02:55]} Rd6 {[%emt 0:05:34]} 26. Rad1 {[%emt 0:16:33]} Rad8 {[%emt 0:04:09]} 27. Bc5 {[%emt 0:01:48]} R6d7 {[%emt 0:00:25]} 28. Bb6 {[%emt 0:00:27]} Re8 {[%emt 0:00:29]} 29. Kg1 {[%emt 0:01:21]} Bh5 {[%emt 0:10:00]} 30. Kf2 {[%emt 0:00:19]} Rd6 {[%emt 0:00:24]} 31. Rg1 {[%emt 0:03:48]} Nd7 {[%emt 0:01:50]} 32. Be3 {[%emt 0:00:17]} d4 {[%emt 0:02:43]} 33. Bd2 {[%emt 0:00:12]} Nf8 {[%emt 0:07:51]} 34. Rg5 {[%emt 0:02:41]} g6 {[%emt 0:01:36]} 35. cxd4 {[%emt 0:01:19]} Nh7 {[%emt 0:13:41]} 36. Rxh5 {[%emt 0:04:21]} gxh5 {[%emt 0:00:12]} 37. Rg1+ {[%emt 0:00:12]} Kf8 {[%emt 0:01:26]} 38. dxe5 {[%emt 0:01:29]} Rxd3 {[%emt 0:00:35]} 39. Bh6+ {[%emt 0:00:13]} Ke7 {[%emt 0:00:01]} 40. Bc4 {[%emt 0:02:14]} Rc3 {[%emt 0:03:38]} 41. Bxf7 {[%emt 0:14:42]} Kxf7 {[%emt 0:00:55]} 42. Rg7+ {[%emt 0:00:09]} Ke6 {[%emt 0:01:45]} 43. Rxh7 {[%emt 0:00:14]} Rxa3 {[%emt 0:05:40]} 44. Bg7 {[%emt 0:09:30]} Rd8 {[%emt 0:32:18]} 45. Rh6+ {[%emt 0:06:37]} Kf7 {[%emt 0:01:30]} 46. Bf6 {[%emt 0:00:07]} Ra2+ {[%emt 0:02:56]} 47. Kg3 {[%emt 0:05:50]} Rd3 {[%emt 0:03:25]} 48. Bg5 {[%emt 0:00:19]} Re2 {[%emt 0:04:57]} 49. e6+ {[%emt 0:00:15]} Kg7 {[%emt 0:00:21]} 50. Kf4 {[%emt 0:00:12]} 1-0

[Event "95th Caplin Hastings Congress"]
[Site "Hastings"]
[Date "2020.01.01"]
[Round "5.19"]
[White "Makkar, Rajat"]
[Black "Terentiev, Sergei"]
[Result "1-0"]
[ECO "A40"]
[WhiteElo "2137"]
[BlackElo "2292"]
[Annotator "RC"]
[PlyCount "69"]
[EventDate "2019.12.28"]
[EventType "swiss"]
[EventCountry "ENG"]
[SourceTitle "playchess.com"]
[Source "ChessBase"]
[SourceQuality "1"]
[TimeControl "40/6600+30:3000+30"]

1. d4 {[%emt 0:14:28]} b5 {[%emt 0:09:40]} 2. e4 {[%emt 0:01:29]} Bb7 {[%emt 0:00:09]} 3. Bd3 {[%emt 0:00:28]} c5 {[%emt 0:02:45]} 4. c3 {[%emt 0:01:04]} cxd4 {[%emt 0:06:17]} 5. cxd4 {[%emt 0:00:53]} Nf6 {[%emt 0:00:58]} 6. Nd2 {[%emt 0:01:50]} Qb6 {[%emt 0:01:57]} 7. Ngf3 {[%emt 0:05:15]} Nc6 {[%emt 0:01:48]} 8. d5 {[%emt 0:04:57]} Nb4 {[%emt 0:00:38]} 9. Bb1 {[%emt 0:03:04]} a5 {[%emt 0:00:54]} 10. O-O {[%emt 0:03:24]} e6 {[%emt 0:06:06]} 11. a3 {[%emt 0:04:42]} Na6 {[%emt 0:01:04]} 12. d6 {[%emt 0:01:43]} e5 {[%emt 0:01:25]} 13. Nxe5 {[%emt 0:02:08]} Bxd6 {[%emt 0:09:52]} 14. Ndc4 {[%emt 0:03:22]} bxc4 {[%emt 0:01:48]} 15. Nxc4 {[%emt 0:00:20]} Bxh2+ {[%emt 0:02:36]} 16. Kxh2 {[%emt 0:00:30]} Qc7+ {[%emt 0:00:21]} 17. Nd6+ {[%emt 0:00:27]} Kf8 {[%emt 0:00:10]} 18. e5 {[%emt 0:01:45]} Ne8 {[%emt 0:01:35]} 19. Nxb7 {[%emt 0:14:04]} Qxb7 {[%emt 0:02:48]} 20. Ba2 {[%emt 0:01:09]} Rc8 {[%emt 0:08:34]} 21. b4 {[%emt 0:07:56]} h5 {[%emt 0:02:54]} 22. Qb3 {[%emt 0:03:44]} d6 {[%emt 0:01:51]} 23. e6 {[%emt 0:01:19]} axb4 {[%emt 0:00:51]} 24. axb4 {[%emt 0:02:58]} f6 {[%emt 0:07:21]} 25. Re1 {[%emt 0:01:49]} Ke7 {[%emt 0:00:09]} 26. Qa4 {[%emt 0:01:54]} Nb8 {[%emt 0:05:51]} 27. b5 {[%emt 0:04:26]} h4 {[%emt 0:01:22]} 28. Rd1 {[%emt 0:01:39]} Rh5 {[%emt 0:04:57]} 29. Bc4 {[%emt 0:13:07]} h3 {[%emt 0:13:02]} 30. Qa7 {[%emt 0:01:55]} hxg2+ {[%emt 0:00:15]} 31. Kg3 {[%emt 0:00:11]} Rc7 {[%emt 0:00:05]} 32. Qxb7 {[%emt 0:03:41]} Rxb7 {[%emt 0:00:10]} 33. b6 {[%emt 0:04:27]} Nc6 {[%emt 0:04:24]} 34. Be3 {[%emt 0:00:50]} Ne5 {[%emt 0:08:54]} 35. Bd5 {[%emt 0:01:29]} 1-0

[Event "95th Caplin Hastings Congress"]
[Site "Hastings"]
[Date "2020.01.01"]
[Round "5.37"]
[White "Okhai, Shabir"]
[Black "Wilson, Matthew R"]
[Result "1-0"]
[ECO "C42"]
[WhiteElo "2103"]
[BlackElo "1837"]
[Annotator "RC"]
[PlyCount "81"]
[EventDate "2019.12.28"]
[EventType "swiss"]
[EventCountry "ENG"]
[SourceTitle "playchess.com"]
[Source "ChessBase"]
[SourceQuality "1"]
[TimeControl "40/6600+30:3000+30"]

1. e4 {[%emt 0:09:32]} e5 {[%emt 0:09:36]} 2. Nf3 {[%emt 0:00:05]} Nf6 {[%emt 0:00:04]} 3. Nxe5 {[%emt 0:00:06]} d6 {[%emt 0:00:11]} 4. Nf3 {[%emt 0:00:05]} Nxe4 {[%emt 0:00:00]} 5. Nc3 {[%emt 0:00:16]} Nxc3 {[%emt 0:00:06]} 6. dxc3 {[%emt 0:00:05]} Be7 {[%emt 0:00:12]} 7. Be3 {[%emt 0:00:06]} Nc6 {[%emt 0:00:19]} 8. Qd2 {[%emt 0:00:27]} Be6 {[%emt 0:01:23]} 9. Bd3 {[%emt 0:05:13]} Qd7 {[%emt 0:01:33]} 10. h4 {[%emt 0:16:08]} Bf6 {[%emt 0:11:11]} 11. Ng5 {[%emt 0:05:39]} Ne5 {[%emt 0:12:10]} 12. Nxe6 {[%emt 0:16:54]} Qxe6 {[%emt 0:10:19]} 13. Bb5+ {[%emt 0:01:53]} c6 {[%emt 0:08:12]} 14. Be2 {[%emt 0:01:20]} O-O {[%emt 0:09:03]} 15. b3 {[%emt 0:05:43]} Rfe8 {[%emt 0:05:30]} 16. O-O-O {[%emt 0:14:37]} Ng4 {[%emt 0:08:51]} 17. Bxg4 {[%emt 0:03:26]} Qxg4 {[%emt 0:00:15]} 18. Kb2 {[%emt 0:06:26]} a5 {[%emt 0:08:30]} 19. f3 {[%emt 0:01:39]} Qb4 {[%emt 0:02:40]} 20. Bg5 {[%emt 0:03:13]} Bxg5 {[%emt 0:03:52]} 21. hxg5 {[%emt 0:01:12]} Qb5 {[%emt 0:05:21]} 22. f4 {[%emt 0:02:21]} d5 {[%emt 0:02:49]} 23. Qf2 {[%emt 0:03:37]} d4 {[%emt 0:09:21]} 24. Rxd4 {[%emt 0:03:32]} Re2 {[%emt 0:01:12]} 25. Qf3 {[%emt 0:01:11]} Rae8 {[%emt 0:03:59]} 26. Qh3 {[%emt 0:02:38]} h6 {[%emt 0:02:36]} 27. gxh6 {[%emt 0:00:15]} g6 {[%emt 0:01:17]} 28. h7+ {[%emt 0:00:12]} Kh8 {[%emt 0:00:12]} 29. Qh4 {[%emt 0:01:38]} Qf5 {[%emt 0:00:30]} 30. Rc1 {[%emt 0:01:21]} Rxg2 {[%emt 0:01:55]} 31. Rd8 {[%emt 0:00:57]} Rge2 {[%emt 0:00:26]} 32. Rxe8+ {[%emt 0:00:19]} Rxe8 {[%emt 0:00:05]} 33. Rd1 {[%emt 0:00:43]} g5 {[%emt 0:01:21]} 34. fxg5 {[%emt 0:00:45]} Qxh7 {[%emt 0:00:21]} 35. Qd4+ {[%emt 0:01:48]} Qg7 {[%emt 0:01:09]} 36. Qd7 {[%emt 0:00:31]} Qf8 {[%emt 0:00:57]} 37. Rh1+ {[%emt 0:00:16]} Kg8 {[%emt 0:00:13]} 38. g6 {[%emt 0:00:26]} Re7 {[%emt 0:00:17]} 39. Qh3 {[%emt 0:01:13]} Qg7 {[%emt 0:00:08]} 40. Qc8+ {[%emt 0:00:07]} Qf8 {[%emt 0:00:25]} 41. Rh8+ {[%emt 0:50:06]} 1-0

[Event "95th Caplin Hastings Congress"]
[Site "Hastings"]
[Date "2020.01.01"]
[Round "5.38"]
[White "Rice, Chris B"]
[Black "Thatte, Nishchal"]
[Result "0-1"]
[ECO "A29"]
[WhiteElo "2027"]
[BlackElo "1723"]
[Annotator "NA RC"]
[PlyCount "74"]
[EventDate "2019.12.28"]
[EventType "swiss"]
[EventCountry "ENG"]
[SourceTitle "playchess.com"]
[Source "ChessBase"]
[SourceQuality "1"]
[TimeControl "40/6600+30:3000+30"]

1. c4 {[%emt 0:15:52]} e5 {[%emt 0:09:35]} 2. g3 {[%emt 0:00:15]} Nf6 {[%emt 0:00:08]} 3. Bg2 {[%emt 0:00:07]} d5 {[%emt 0:00:09]} 4. cxd5 {[%emt 0:00:06]} Nxd5 {[%emt 0:00:08]} 5. Nf3 {[%emt 0:03:04]} Nc6 {[%emt 0:00:10]} 6. Nc3 {[%emt 0:00:11]} Nb6 {[%emt 0:00:12]} 7. O-O {[%emt 0:00:19]} Be7 {[%emt 0:00:15]} 8. d3 {[%emt 0:01:36]} O-O {[%emt 0:00:20]} 9. a3 {[%emt 0:00:24]} a5 {[%emt 0:00:19]} 10. Be3 {[%emt 0:00:59]} Be6 {[%emt 0:00:27]} 11. Rc1 {[%emt 0:05:33]} a4 {[%emt 0:00:47] A29: English Opening: Four Knights Variation with 4 g3} 12. Nd2 {[%emt 0:06:04]} f5 {[%emt 0:00:42]} 13. Bxb6 {[%emt 0:09:26]} cxb6 {[%emt 0:00:29]} 14. Nxa4 {[%emt 0:00:49]} Bg5 $1 {[%emt 0:00:49]} 15. Nc3 {[%emt 0:06:04]} e4 {[%emt 0:00:40]} 16. f4 {[%emt 0:16:14]} (16. Kh1 Qd7 17. Rb1 Rad8 18. Nc4 Qf7 19. b3 exd3 20. exd3 {0-1 (43) Giri,A (2777)-Carlsen,M (2843) Shamkir 2018}) 16... exf3 {[%emt 0:01:08]} 17. Bxf3 $146 {[%emt 0:00:15]} ({Predecessor:} 17. Nxf3 Bxc1 18. Qxc1 h6 19. Qe3 {0-1 (45) Gheng,J (2233)-Sonis,F (2467) Karlsruhe 2019}) 17... Qd7 {[%emt 0:20:31]} 18. Rb1 {[%emt 0:05:41]} Be3+ {[%emt 0:08:32]} 19. Kh1 {[%emt 0:00:31]} Ne5 {[%emt 0:00:27]} (19... b5 $5) 20. Nc4 {[%emt 0:12:28]} Bd4 {[%emt 0:13:21]} 21. Nxe5 {[%emt 0:03:18]} Bxe5 {[%emt 0:00:23]} 22. Qd2 {[%emt 0:09:32]} Rf6 {[%emt 0:04:29]} 23. e3 {[%emt 0:01:20]} Rh6 {[%emt 0:07:14]} 24. Kg1 {[%emt 0:00:20]} g5 {[%emt 0:19:51]} 25. d4 {[%emt 0:01:05]} Bg7 {[%emt 0:04:48]} 26. Qg2 {[%emt 0:03:03]} (26. d5 $16) 26... f4 {[%emt 0:03:15]} 27. Bxb7 {[%emt 0:00:37]} Rd8 {[%emt 0:04:17]} 28. Bc6 {[%emt 0:07:30]} Qe7 {[%emt 0:03:52]} 29. Qe4 {[%emt 0:02:25]} Qf7 {[%emt 0:08:49]} 30. Rbd1 {[%emt 0:00:18]} Qh5 {[%emt 0:02:14]} 31. Rf2 {[%emt 0:01:13]} fxg3 $2 {[%emt 0:02:20]} (31... Bb3 $17 {keeps the pressure on.} 32. Re1 Re6) 32. hxg3 {[%emt 0:00:28]} Bf7 {[%emt 0:01:09]} 33. Bd5 {[%emt 0:02:14]} Bxd5 {[%emt 0:00:15]} 34. Nxd5 {[%emt 0:00:35]} Qxd1+ {[%emt 0:00:09]} 35. Rf1 {[%emt 0:00:51] [#]} Qe2 $19 {[%emt 0:00:53]} 36. Ne7+ {[%emt 0:02:17]} Kh8 {[%emt 0:00:05]} 37. Rf2 {[%emt 0:00:20]} Qe1+ {[%emt 0:00:05]} 0-1